fUST/lending_fUST_20240112
["ID","MTS","AMOUNT","RATE_DAILY","PERIOD"]
[311278844,1705012244099,-500.0,0.0003041,2]
[311278845,1705012244108,-501.06939147,0.0003041,2]
[311278846,1705012244117,-500.0,0.0003041,2]
[311278847,1705012244126,-500.0,0.0003041,2]
[311278848,1705012244134,-500.0,0.0003041,2]
[311278849,1705012244143,-500.0,0.0003041,2]
[311278850,1705012244152,-500.0,0.0003041,2]
[311278851,1705012244161,-500.0,0.0003041,2]
[311278852,1705012244170,-523.71767988,0.0003041,2]
[311278853,1705012244179,-500.0,0.0003041,2]
[311278854,1705012244188,-500.98904351,0.0003041,2]
[311278855,1705012244198,-500.0,0.0003041,2]
[311278856,1705012244207,-500.0,0.0003041,2]
[311278857,1705012244216,-500.0,0.0003041,2]
[311278858,1705012244225,-467.35963972,0.0003041,2]
[311278859,1705012244234,-500.0,0.0003041,2]
[311278860,1705012244245,-505.40807221,0.0003041,2]
[311278861,1705012244254,-500.0,0.0003041,2]
[311278862,1705012244263,-500.0,0.0003041,2]
[311278863,1705012244272,-1166.65,0.0003041,2]
[311278864,1705012244282,-500.0,0.0003041,2]
[311278865,1705012244291,-500.0,0.0003041,2]
[311278866,1705012244302,-500.0,0.0003041,2]
[311278867,1705012244311,-500.0,0.0003041,2]
[311278868,1705012244320,-500.0,0.0003041,2]
[311278869,1705012244328,-500.0,0.0003041,2]
[311278870,1705012244338,-500.0,0.0003041,2]
[311278871,1705012244347,-500.0,0.0003041,2]
[311278872,1705012244357,-500.0,0.0003041,2]
[311278873,1705012244366,-506.7169621,0.0003041,2]
[311278874,1705012244375,-500.0,0.0003041,2]
[311278875,1705012244384,-500.0,0.0003041,2]
[311278876,1705012244393,-500.0,0.0003041,2]
[311278877,1705012244403,-500.0,0.0003041,2]
[311278878,1705012244412,-500.0,0.0003041,2]
[311278879,1705012244421,-500.0,0.0003041,2]
[311278880,1705012244430,-500.0,0.0003041,2]
[311278881,1705012244440,-500.0,0.0003041,2]
[311278882,1705012244450,-500.55407658,0.0003041,2]
[311278883,1705012244459,-500.0,0.0003041,2]
[311278884,1705012244469,-500.0,0.0003041,2]
[311278885,1705012244478,-500.0,0.0003041,2]
[311278886,1705012244488,-375.1053871,0.0003041,2]
[311278887,1705012244497,-500.0,0.0003041,2]
[311278888,1705012244506,-167.03143862,0.0003041,2]
[311278889,1705012244516,-500.0,0.0003041,2]
[311278890,1705012244524,-500.0,0.0003041,2]
[311278891,1705012244533,-500.0,0.0003041,2]
[311278892,1705012244543,-500.0,0.0003041,2]
[311278893,1705012244553,-500.0,0.0003041,2]
[311278894,1705012244643,-500.0,0.0003041,2]
[311278895,1705012244652,-500.0,0.0003041,2]
[311278896,1705012244662,-500.0,0.0003041,2]
[311278897,1705012244673,-500.0,0.0003041,2]
[311278898,1705012244682,-500.0,0.0003041,2]
[311278899,1705012244691,-500.0,0.0003041,2]
[311278900,1705012244700,-1855.2,0.0003041,2]
[311278901,1705012244709,-500.0,0.0003041,2]
[311278902,1705012244719,-547.17160883,0.0003041,2]
[311278903,1705012244728,-500.0,0.0003041,2]
[311278904,1705012244737,-500.0,0.0003041,2]
[311278905,1705012244746,-153.08120164,0.0003041,2]
[311278906,1705012244756,-616.77045367,0.0003041,2]
[311278907,1705012244766,-13819.95,0.0003041,2]
[311278908,1705012244775,-500.0,0.0003041,2]
[311278909,1705012244784,-500.0,0.0003041,2]
[311278910,1705012244793,-500.0,0.0003041,2]
[311278911,1705012244803,-500.0,0.0003041,2]
[311278912,1705012244813,-198.03655694,0.0003041,2]
[311278913,1705012244822,-604.64057332,0.0003041,2]
[311278914,1705012244831,-500.0,0.0003041,2]
[311278915,1705012244840,-500.0,0.0003041,2]
[311278916,1705012244849,-500.0,0.0003041,2]
[311278917,1705012244859,-500.0,0.0003041,2]
[311278918,1705012244868,-500.0,0.0003041,2]
[311278919,1705012244877,-500.0,0.0003041,2]
[311278920,1705012244886,-500.0,0.0003041,2]
[311278921,1705012244895,-500.0,0.0003041,2]
[311278922,1705012244904,-500.0,0.0003041,2]
[311278923,1705012244914,-554.52,0.0003041,2]
[311278924,1705012244923,-500.0,0.0003041,2]
[311278925,1705012244932,-500.0,0.0003041,2]
[311278926,1705012244941,-500.0,0.0003041,2]
[311278927,1705012244950,-500.0,0.0003041,2]
[311278928,1705012244959,-500.0,0.0003041,2]
[311278929,1705012244968,-500.0,0.0003041,2]
[311278930,1705012244977,-500.0,0.0003041,2]
[311278931,1705012244986,-500.0,0.0003041,2]
[311278932,1705012244995,-500.0,0.0003041,2]
[311278933,1705012245004,-500.0,0.0003041,2]
[311278934,1705012245013,-503.08,0.0003041,2]
[311278935,1705012245022,-500.0,0.0003041,2]
[311278936,1705012245031,-500.0,0.0003041,2]
[311278937,1705012245040,-500.0,0.0003041,2]
[311278938,1705012245049,-1711.83,0.0003041,2]
[311278939,1705012245058,-557.31614806,0.0003041,2]
[311278940,1705012245067,-279.67823767,0.0003041,2]
[311278941,1705012245075,-493.32760394,0.0003041,2]
[311278942,1705012245085,-500.0,0.0003041,2]
[311278943,1705012245094,-3099.55,0.0003041,2]
[311278944,1705012245103,-500.0,0.0003041,2]
[311278945,1705012245112,-665.68,0.0003041,2]
[311278946,1705012245121,-535.05600543,0.0003041,2]
[311278947,1705012245130,-517.12,0.0003041,2]
[311278948,1705012245138,-500.0,0.0003041,2]
[311278949,1705012245147,-6041.06,0.0003041,2]
[311278950,1705012245157,-500.0,0.0003041,2]
[311278951,1705012245166,-500.0,0.0003041,2]
[311278952,1705012245175,-500.0,0.0003041,2]
[311278953,1705012245184,-500.0,0.0003041,2]
[311278954,1705012245193,-852.98,0.0003041,2]
[311278955,1705012245202,-1642.11,0.0003041,2]
[311278956,1705012245211,-500.0,0.0003041,2]
[311278957,1705012245219,-500.0,0.0003041,2]
[311278958,1705012245227,-500.0,0.0003041,2]
[311278959,1705012245235,-505.56430784,0.0003041,2]
[311278960,1705012245244,-500.0,0.0003041,2]
[311278961,1705012245252,-500.0,0.0003041,2]
[311278962,1705012245261,-500.0,0.0003041,2]
[311278963,1705012245271,-500.0,0.0003041,2]
[311278964,1705012245280,-362.47033602,0.0003041,2]
[311278965,1705012245290,-565.74,0.0003041,2]
[311278966,1705012245299,-500.0,0.0003041,2]
[311278967,1705012245309,-500.0,0.0003041,2]
[311278968,1705012245318,-500.0,0.0003041,2]
[311278969,1705012245327,-500.0,0.0003041,2]
[311278970,1705012245336,-500.0,0.0003041,2]
[311278971,1705012245345,-500.0,0.0003041,2]
[311278972,1705012245354,-502.68276975,0.0003041,2]
[311278973,1705012245363,-270.48396333,0.0003041,2]
[311278974,1705012245373,-1152.99,0.0003041,2]
[311278975,1705012245381,-500.0,0.0003041,2]
[311278976,1705012245390,-500.86128678,0.0003041,2]
[311278977,1705012245400,-500.0,0.0003041,2]
[311278978,1705012245409,-500.0,0.0003041,2]
[311278979,1705012245419,-500.0,0.0003041,2]
[311278980,1705012245428,-500.0,0.0003041,2]
[311278981,1705012245438,-687.44,0.0003041,2]
[311278982,1705012245447,-500.0,0.0003041,2]
[311278983,1705012245456,-500.0,0.0003041,2]
[311278984,1705012245466,-500.0,0.0003041,2]
[311278985,1705012245476,-250.44020958,0.0003041,2]
[311278986,1705012245485,-540.34902769,0.0003041,2]
[311278987,1705012245495,-500.0,0.0003041,2]
[311278988,1705012245504,-500.0,0.0003041,2]
[311278989,1705012245513,-500.0,0.0003041,2]
[311278990,1705012245523,-500.0,0.0003041,2]
[311278991,1705012245532,-522.3,0.0003041,2]
[311278992,1705012245541,-500.0,0.0003041,2]
[311278993,1705012245551,-500.0,0.0003041,2]
[311278994,1705012245559,-570.42,0.0003041,2]
[311278995,1705012245569,-500.0,0.0003041,2]
[311278996,1705012245577,-1127.39,0.0003041,2]
[311278997,1705012245587,-500.0,0.0003041,2]
[311278998,1705012245595,-500.0,0.0003041,2]
[311278999,1705012245604,-500.0,0.0003041,2]
[311279000,1705012245613,-500.0,0.0003041,2]
[311279001,1705012245622,-500.0,0.0003041,2]
[311279002,1705012245631,-500.0,0.0003041,2]
[311279003,1705012245640,-500.0,0.0003041,2]
[311279004,1705012245650,-500.0,0.0003041,2]
[311279005,1705012245660,-602.86210196,0.0003041,2]
[311279006,1705012245670,-1000.0,0.0003041,2]
[311279007,1705012245679,-500.0,0.0003041,2]
[311279008,1705012245687,-500.0,0.0003041,2]
[311279009,1705012245696,-500.0,0.0003041,2]
[311279010,1705012245705,-1522.315738,0.000305,2]
[311279011,1705012245714,-198.0,0.00030658,30]
[311279012,1705012245723,-1792.0,0.00030658,30]
[311279013,1705012245732,-227.0,0.00030658,7]
[311279014,1705012245741,-5552.0,0.00030658,30]
[311279015,1705012245751,-198.0,0.00030668,30]
[311279016,1705012245760,-1792.0,0.00030668,30]
[311279017,1705012245769,-227.0,0.00030668,7]
[311279018,1705012245778,-5552.0,0.00030668,30]
[311279019,1705012245788,-198.0,0.00030678,30]
[311279020,1705012245797,-227.0,0.00030678,7]
[311279021,1705012245806,-1792.0,0.00030678,30]
[311279023,1705012245815,-5552.0,0.00030678,30]
[311279024,1705012245824,-602.35960015,0.00030684,2]
[311279026,1705012245833,-581.02302072,0.00030684,2]
[311279027,1705012245842,-500.0,0.00030684,2]
[311279028,1705012245851,-588.40705632,0.00030684,2]
[311279029,1705012245860,-334.3,0.00030684,2]
[311279030,1705012245869,-253.12,0.00030684,2]
[311279031,1705012245879,-500.0,0.00030684,2]
[311279032,1705012245888,-504.63167526,0.00030684,2]
[311279033,1705012245897,-559.32044654,0.00030684,2]
[311279034,1705012245906,-500.0,0.00030684,2]
[311279035,1705012245914,-539.5,0.00030684,2]
[311279036,1705012245923,-500.0,0.00030684,2]
[311279037,1705012245932,-548.06,0.00030684,2]
[311279039,1705012245941,-500.0,0.00030684,2]
[311279040,1705012245950,-500.0,0.00030684,2]
[311279042,1705012245959,-1000.0,0.00030684,2]
[311279044,1705012245967,-500.0,0.00030684,2]
[311279045,1705012245977,-500.0,0.00030684,2]
[311279047,1705012245986,-234.38552857,0.00030684,2]
[311279049,1705012245995,-500.0,0.00030684,2]
[311279051,1705012246005,-500.0,0.00030684,2]
[311279052,1705012246014,-525.29763038,0.00030684,2]
[311279053,1705012246023,-500.0,0.00030684,2]
[311279054,1705012246031,-500.0,0.00030684,2]
[311279055,1705012246040,-500.0,0.00030684,2]
[311279056,1705012246050,-500.0,0.00030684,2]
[311279057,1705012246059,-500.0,0.00030684,2]
[311279058,1705012246068,-500.0,0.00030684,2]
[311279059,1705012246077,-500.0,0.00030684,2]
[311279060,1705012246085,-534.45113852,0.00030684,2]
[311279061,1705012246095,-500.0,0.00030684,2]
[311279062,1705012246105,-500.0,0.00030684,2]
[311279063,1705012246114,-500.0,0.00030684,2]
[311279064,1705012246123,-500.0,0.00030684,2]
[311279065,1705012246133,-500.0,0.00030684,2]
[311279066,1705012246142,-500.0,0.00030684,2]
[311279068,1705012246151,-445.60852312,0.00030684,2]
[311279069,1705012246160,-500.0,0.00030684,2]
[311279070,1705012246169,-459.80757038,0.00030684,2]
[311279071,1705012246178,-500.0,0.00030684,2]
[311279072,1705012246187,-500.0,0.00030684,2]
[311279073,1705012246196,-500.0,0.00030684,2]
[311279075,1705012246204,-500.0,0.00030684,2]
[311279076,1705012246213,-500.0,0.00030684,2]
[311279077,1705012246222,-1166.65,0.00030684,2]
[311279078,1705012246231,-500.0,0.00030684,2]
[311279079,1705012246240,-558.94,0.00030684,2]
[311279080,1705012246249,-500.0,0.00030684,2]
[311279081,1705012246258,-500.0,0.00030684,2]
[311279082,1705012246267,-500.0,0.00030684,2]
[311279083,1705012246276,-500.0,0.00030684,2]
[311279084,1705012246285,-520.04023755,0.00030684,2]
[311279085,1705012246294,-503.38877477,0.00030684,2]
[311279086,1705012246304,-620.68321012,0.00030684,2]
[311279087,1705012246313,-500.0,0.00030684,2]
[311279088,1705012246322,-500.0,0.00030684,2]
[311279089,1705012246331,-500.0,0.00030684,2]
[311279090,1705012246340,-500.0,0.00030684,2]
[311279091,1705012246350,-500.0,0.00030684,2]
[311279092,1705012246359,-500.0,0.00030684,2]
[311279093,1705012246368,-500.0,0.00030684,2]
[311279094,1705012246378,-500.0,0.00030684,2]
[311279095,1705012246387,-500.0,0.00030684,2]
[311279096,1705012246397,-500.0,0.00030684,2]
[311279097,1705012246406,-500.0,0.00030684,2]
[311279098,1705012246415,-500.0,0.00030684,2]
[311279099,1705012246424,-500.0,0.00030684,2]
[311279101,1705012246433,-500.0,0.00030684,2]
[311279102,1705012246442,-500.0,0.00030684,2]
[311279103,1705012246451,-1855.2,0.00030684,2]
[311279104,1705012246460,-500.0,0.00030684,2]
[311279105,1705012246470,-500.0,0.00030684,2]
[311279106,1705012246480,-500.0,0.00030684,2]
[311279107,1705012246490,-13819.95,0.00030684,2]
[311279108,1705012246499,-215.42859924,0.00030684,2]
[311279109,1705012246508,-503.18365884,0.00030684,2]
[311279110,1705012246518,-500.0,0.00030684,2]
[311279111,1705012246527,-500.0,0.00030684,2]
[311279112,1705012246537,-500.0,0.00030684,2]
[311279113,1705012246546,-500.0,0.00030684,2]
[311279114,1705012246555,-500.0,0.00030684,2]
[311279115,1705012246565,-500.0,0.00030684,2]
[311279116,1705012246574,-500.0,0.00030684,2]
[311279117,1705012246660,-500.0,0.00030684,2]
[311279118,1705012246669,-500.0,0.00030684,2]
[311279119,1705012246678,-356.88042739,0.00030684,2]
[311279120,1705012246689,-500.0,0.00030684,2]
[311279121,1705012246698,-500.0,0.00030684,2]
[311279122,1705012246707,-503.08,0.00030684,2]
[311279123,1705012246717,-500.0,0.00030684,2]
[311279124,1705012246726,-516.97694158,0.00030684,2]
[311279125,1705012246736,-1711.83,0.00030684,2]
[311279126,1705012246745,-500.0,0.00030684,2]
[311279127,1705012246755,-3099.55,0.00030684,2]
[311279128,1705012246765,-500.0,0.00030684,2]
[311279129,1705012246774,-665.68,0.00030684,2]
[311279130,1705012246783,-517.12,0.00030684,2]
[311279131,1705012246793,-500.0,0.00030684,2]
[311279132,1705012246803,-6041.06,0.00030684,2]
[311279133,1705012246812,-500.0,0.00030684,2]
[311279134,1705012246821,-504.17246542,0.00030684,2]
[311279135,1705012246831,-500.0,0.00030684,2]
[311279136,1705012246841,-852.98,0.00030684,2]
[311279137,1705012246850,-1642.11,0.00030684,2]
[311279138,1705012246859,-500.0,0.00030684,2]
[311279139,1705012246868,-500.0,0.00030684,2]
[311279140,1705012246878,-500.0,0.00030684,2]
[311279141,1705012246887,-500.0,0.00030684,2]
[311279142,1705012246896,-532.42179893,0.00030684,2]
[311279143,1705012246905,-565.74,0.00030684,2]
[311279144,1705012246914,-500.0,0.00030684,2]
[311279145,1705012246924,-500.0,0.00030684,2]
[311279146,1705012246933,-500.0,0.00030684,2]
[311279147,1705012246942,-500.0,0.00030684,2]
[311279148,1705012246952,-1152.99,0.00030684,2]
[311279149,1705012246962,-500.0,0.00030684,2]
[311279150,1705012246971,-500.0,0.00030684,2]
[311279151,1705012246980,-500.0,0.00030684,2]
[311279152,1705012246990,-281.3858265,0.00030684,2]
[311279153,1705012246999,-687.44,0.00030684,2]
[311279154,1705012247008,-500.0,0.00030684,2]
[311279155,1705012247018,-94.06036865,0.00030684,2]
[311279156,1705012247105,-405.93963135,0.00030684,2]
[311279157,1705012247114,-500.0,0.00030684,2]
[311279158,1705012247123,-500.0,0.00030684,2]
[311279159,1705012247133,-500.0,0.00030684,2]
[311279160,1705012247142,-522.3,0.00030684,2]
[311279161,1705012247151,-500.0,0.00030684,2]
[311279162,1705012247162,-570.42,0.00030684,2]
[311279163,1705012247171,-500.0,0.00030684,2]
[311279164,1705012247181,-1127.39,0.00030684,2]
[311279165,1705012247190,-500.0,0.00030684,2]
[311279166,1705012247200,-500.0,0.00030684,2]
[311279167,1705012247209,-296.81029934,0.00030684,2]
[311279168,1705012247218,-500.0,0.00030684,2]
[311279169,1705012247228,-502.38144247,0.00030684,2]
[311279170,1705012247238,-500.79142979,0.00030684,2]
[311279171,1705012247247,-1000.0,0.00030684,2]
[311279172,1705012247256,-501.07299609,0.00030684,2]
[311279173,1705012247265,-400.444299,0.00030717,2]
[311279174,1705012247274,-293.408787,0.00030717,2]
[311279175,1705012247284,-81.89063784,0.00030717,2]
[311279176,1705012247296,-211.51815016,0.00030717,2]
[311279177,1705012247305,-400.444298,0.00030717,2]
[311279178,1705012247314,-400.444299,0.00030717,2]
[311279179,1705012247323,-293.408788,0.00030717,2]
[311279180,1705012247333,-620.00001829,0.00030838,2]
[311279181,1705012247342,-561.99301516,0.00030958,2]
[311279182,1705012247351,-539.5,0.00030958,2]
[311279183,1705012247360,-500.0,0.00030958,2]
[311279184,1705012247369,-99.88913754,0.00030958,2]
[311279185,1705012247385,-292.96682155,0.00030958,2]
[311279186,1705012247397,-432.85647337,0.00030958,2]
[311279187,1705012247551,-2211.42342407,0.00011882,2]
[311279188,1705012247567,-500.3600126,0.00011882,2]
[311279189,1705012247711,-166.35364662,0.00011881,2]
[311279190,1705012247720,-138.32318928,0.00011882,2]
[311279191,1705012247797,-155.05892239,0.00011881,2]
[311279192,1705012247807,-240.8397023,0.00011881,2]
[311279193,1705012247817,-2708.97417906,0.00011881,2]
[311279194,1705012247826,-2070.70229933,0.00011881,2]
[311279195,1705012247837,-16813.47647061,0.00011882,2]
[311279196,1705012247846,-500.0,0.00030136,2]
[311279197,1705012247855,-500.0,0.00030136,2]
[311279198,1705012247864,-412.25216866,0.00030136,2]
[311279199,1705012247873,-500.0,0.00030136,2]
[311279200,1705012247882,-500.0,0.0003041,2]
[311279201,1705012247891,-500.0,0.0003041,2]
[311279202,1705012247901,-500.0,0.00030684,2]
[311279203,1705012247910,-8.70000248,0.00030958,2]
[311279204,1705012247919,-500.0,0.00030958,2]
[311279205,1705012247928,-500.0,0.00030958,2]
[311279206,1705012247937,-500.0,0.00030958,2]
[311279207,1705012247946,-500.0,0.00030958,2]
[311279208,1705012247955,-500.0,0.00030958,2]
[311279209,1705012247964,-216.46883088,0.00030958,2]
[311279210,1705012247973,-500.0,0.00030958,2]
[311279211,1705012247982,-500.0,0.00030958,2]
[311279212,1705012247991,-500.0,0.00030958,2]
[311279213,1705012248000,-500.0,0.00030958,2]
[311279214,1705012248009,-500.0,0.00030958,2]
[311279215,1705012248018,-500.0,0.00030958,2]
[311279216,1705012248027,-500.0,0.00030958,2]
[311279217,1705012248036,-1166.65,0.00030958,2]
[311279218,1705012248047,-500.0,0.00030958,2]
[311279219,1705012248056,-500.0,0.00030958,2]
[311279220,1705012248065,-500.0,0.00030958,2]
[311279221,1705012248074,-500.0,0.00030958,2]
[311279222,1705012248083,-500.0,0.00030958,2]
[311279223,1705012248092,-363.90282833,0.00030958,2]
[311279224,1705012248101,-500.0,0.00030958,2]
[311279225,1705012248110,-500.0,0.00030958,2]
[311279226,1705012248119,-500.0,0.00030958,2]
[311279227,1705012248127,-500.0,0.00030958,2]
[311279228,1705012248136,-645.17173758,0.00030958,2]
[311279229,1705012248146,-467.32,0.00030958,2]
[311279230,1705012248155,-1855.2,0.00030958,2]
[311279231,1705012248164,-500.0,0.00030958,2]
[311279232,1705012248173,-500.0,0.00030958,2]
[311279233,1705012248183,-500.0,0.00030958,2]
[311279234,1705012248192,-13819.95,0.00030958,2]
[311279235,1705012248202,-500.0,0.00030958,2]
[311279236,1705012248211,-500.0,0.00030958,2]
[311279237,1705012248219,-573.66885258,0.00030958,2]
[311279238,1705012248229,-500.0,0.00030958,2]
[311279239,1705012248238,-500.0,0.00030958,2]
[311279240,1705012248247,-500.0,0.00030958,2]
[311279241,1705012248256,-409.44955892,0.00030958,2]
[311279242,1705012248265,-280.0039697,0.00030958,2]
[311279243,1705012248274,-500.0,0.00030958,2]
[311279244,1705012248283,-500.0,0.00030958,2]
[311279245,1705012248292,-503.08,0.00030958,2]
[311279246,1705012248302,-500.0,0.00030958,2]
[311279247,1705012248311,-1711.83,0.00030958,2]
[311279248,1705012248320,-500.0,0.00030958,2]
[311279249,1705012248330,-3099.55,0.00030958,2]
[311279250,1705012248339,-357.58884199,0.00030958,2]
[311279251,1705012248348,-665.68,0.00030958,2]
[311279252,1705012248357,-517.12,0.00030958,2]
[311279253,1705012248366,-500.0,0.00030958,2]
[311279254,1705012248375,-6041.06,0.00030958,2]
[311279255,1705012248384,-500.0,0.00030958,2]
[311279256,1705012248469,-852.98,0.00030958,2]
[311279257,1705012248478,-1642.11,0.00030958,2]
[311279258,1705012248487,-500.0,0.00030958,2]
[311279259,1705012248496,-500.0,0.00030958,2]
[311279260,1705012248506,-500.0,0.00030958,2]
[311279261,1705012248515,-565.74,0.00030958,2]
[311279262,1705012248525,-500.0,0.00030958,2]
[311279263,1705012248534,-500.0,0.00030958,2]
[311279264,1705012248543,-500.0,0.00030958,2]
[311279265,1705012248553,-500.0,0.00030958,2]
[311279266,1705012248562,-1152.99,0.00030958,2]
[311279267,1705012248572,-500.0,0.00030958,2]
[311279268,1705012248581,-422.14478228,0.00030958,2]
[311279269,1705012248590,-500.0,0.00030958,2]
[311279270,1705012248599,-687.44,0.00030958,2]
[311279271,1705012248609,-234.93743939,0.00030958,2]
[311279272,1705012248618,-500.0,0.00030958,2]
[311279273,1705012248627,-500.0,0.00030958,2]
[311279274,1705012248636,-522.3,0.00030958,2]
[311279275,1705012248648,-570.42,0.00030958,2]
[311279276,1705012248658,-500.0,0.00030958,2]
[311279277,1705012248667,-1127.39,0.00030958,2]
[311279278,1705012248676,-340.52,0.00030958,2]
[311279279,1705012248685,-500.0,0.00030958,2]
[311279280,1705012248694,-500.0,0.00030958,2]
[311279281,1705012248703,-96855.26836877,0.00031,4]
[311279282,1705012248712,-154.09671268,0.00031044,7]
[311279283,1705012248722,-400.444299,0.00031087,2]
[311279284,1705012248731,-293.408787,0.00031087,2]
[311279285,1705012248740,-293.408788,0.00031087,2]
[311279286,1705012248749,-400.444298,0.00031087,2]
[311279287,1705012248758,-293.408788,0.00031087,2]
[311279288,1705012248768,-400.444299,0.00031087,2]
[311279289,1705012248777,-4615.45641184,0.00031135,2]
[311279290,1705012248787,-2373.29495294,0.00031135,2]
[311279291,1705012248796,-2373.29495294,0.00031135,2]
[311279292,1705012248805,-2373.29495294,0.00031135,2]
[311279293,1705012248814,-2373.29495294,0.00031135,2]
[311279294,1705012248823,-2373.29495294,0.00031135,2]
[311279295,1705012248833,-2373.29495294,0.00031135,2]
[311279296,1705012248842,-2373.29495294,0.00031135,2]
[311279297,1705012248851,-2373.29495294,0.00031135,2]
[311279298,1705012248860,-2373.29495294,0.00031135,2]
[311279299,1705012248869,-2373.29495294,0.00031135,2]
[311279300,1705012248878,-175.0,0.00031135,2]
[311279301,1705012248887,-640.72136841,0.00031135,2]
[311279302,1705012248896,-539.5,0.00031232,2]
[311279303,1705012248905,-500.0,0.00031232,2]
[311279304,1705012248914,-500.0,0.00031232,2]
[311279305,1705012248923,-560.27805403,0.00031232,2]
[311279306,1705012248932,-519.16,0.00031232,2]
[311279307,1705012248941,-500.0,0.00031232,2]
[311279308,1705012248951,-500.0,0.00031232,2]
[311279309,1705012248960,-507.79952891,0.00031232,2]
[311279310,1705012248969,-500.0,0.00031232,2]
[311279311,1705012248978,-500.0,0.00031232,2]
[311279312,1705012248987,-500.0,0.00031232,2]
[311279313,1705012248996,-1166.65,0.00031232,2]
[311279314,1705012249005,-500.0,0.00031232,2]
[311279315,1705012249014,-500.0,0.00031232,2]
[311279316,1705012249023,-500.0,0.00031232,2]
[311279317,1705012249032,-438.76690528,0.00031232,2]
[311279318,1705012249041,-500.0,0.00031232,2]
[311279319,1705012249051,-500.0,0.00031232,2]
[311279320,1705012249060,-503.88246748,0.00031232,2]
[311279321,1705012249069,-1855.2,0.00031232,2]
[311279322,1705012249079,-500.0,0.00031232,2]
[311279323,1705012249088,-494.52868408,0.00031232,2]
[311279324,1705012249097,-13819.95,0.00031232,2]
[311279325,1705012249106,-500.0,0.00031232,2]
[311279326,1705012249115,-500.0,0.00031232,2]
[311279327,1705012249124,-500.0,0.00031232,2]
[311279328,1705012249133,-500.0,0.00031232,2]
[311279329,1705012249142,-500.0,0.00031232,2]
[311279330,1705012249151,-500.0,0.00031232,2]
[311279331,1705012249160,-500.0,0.00031232,2]
[311279332,1705012249169,-503.08,0.00031232,2]
[311279333,1705012249178,-1711.83,0.00031232,2]
[311279334,1705012249187,-500.0,0.00031232,2]
[311279335,1705012249197,-3099.55,0.00031232,2]
[311279336,1705012249207,-665.68,0.00031232,2]
[311279337,1705012249216,-517.12,0.00031232,2]
[311279338,1705012249224,-623.88810323,0.00031232,2]
[311279339,1705012249233,-6041.06,0.00031232,2]
[311279340,1705012249242,-500.0,0.00031232,2]
[311279341,1705012249252,-852.98,0.00031232,2]
[311279342,1705012249261,-1642.11,0.00031232,2]
[311279343,1705012249270,-500.0,0.00031232,2]
[311279344,1705012249278,-519.44592669,0.00031232,2]
[311279345,1705012249288,-565.74,0.00031232,2]
[311279346,1705012249297,-500.0,0.00031232,2]
[311279347,1705012249306,-500.0,0.00031232,2]
[311279348,1705012249315,-1152.99,0.00031232,2]
[311279349,1705012249324,-192.7,0.00031232,2]
[311279350,1705012249333,-687.44,0.00031232,2]
[311279351,1705012249342,-420.14,0.00031232,2]
[311279352,1705012249351,-500.0,0.00031232,2]
[311279353,1705012249360,-522.3,0.00031232,2]
[311279354,1705012249369,-570.42,0.00031232,2]